Cogmind - Beta 16 @@@ ROGUE MODE // 2026.02.04 @ 14:19:47 Player: luckinvolved Result: Destroyed by G-34 Mercenary with Small Laser Performance ------------- Evolutions (0) 0 Regions Visited (1) 200 Robots Destroyed (20) 100 Value Destroyed (408) 408 Prototype IDs (1) 20 Alien Tech Used (0) 0 Bonus (0) 0 TOTAL SCORE: 728 Bonus ------- None Cogmind --------- Core Integrity 0/250 Matter 297/300 Energy 280/280 System Corruption 0% Temperature Cool (6) Movement Treading (320) Ox2 Location -10/Materials Parts ------- > --- POWER (1) -------- Heavy Ion Engine > --- PROPULSION (2) --- Light Treads Light Treads > --- UTILITY (2) ------ Huge Storage Unit Improved Targeting Computer > --- WEAPON (2) ------- Assault Rifle Assault Rifle > --- INVENTORY (25) --- Light Ion Engine Light Ion Engine Heavy Ion Engine Heavy Ion Engine Light Treads Light Treads Light Treads Wheel Wheel Compact Wheel Improved Heat Sink Visual Processing Unit Seismic Detector Seismic Detector Assault Rifle Assault Rifle Assault Rifle Mining Laser Mace Peak State ------------ > --- POWER ------------ Heavy Ion Engine > --- PROPULSION ------- Light Treads Light Treads > --- UTILITY ---------- Huge Storage Unit Seismic Detector > --- WEAPON ----------- Assault Rifle Assault Rifle > --- INVENTORY -------- Light Ion Engine Light Ion Engine Heavy Ion Engine Heavy Ion Engine Light Treads Light Treads Light Treads Wheel Wheel Compact Wheel Improved Heat Sink Visual Processing Unit Seismic Detector Improved Targeting Computer Assault Rifle Assault Rifle Assault Rifle Assault Rifle Assault Rifle Mining Laser Mace [Rating: 12] Favorites ----------- Power Heavy Ion Engine Engine Heavy Ion Engine Propulsion Light Treads Treads Light Treads Leg Aluminum Leg Utility Seismic Detector Device Seismic Detector Storage Huge Storage Unit Processor Improved Targeting Computer Weapon Assault Rifle Ballistic Gun Assault Rifle Impact Weapon Mace Build | -11 -10 ------- Run | Yrd Mat Slots Evolved . | . . Power . | . . Propulsion . | . . Utility . | . . Weapon . | . . Parts Attached 11 | 4 7 Power 1 | . 1 Engine 1 | . 1 Core . | . . Reactor . | . . Propulsion 2 | 2 . Treads 2 | 2 . Leg . | . . Wheel . | . . Hover . | . . Flight . | . . Utility 4 | 2 2 Device 2 | 2 . Storage 1 | . 1 Processor 1 | . 1 Hackware . | . . Protection . | . . Artifact . | . . Weapon 4 | . 4 Energy Gun . | . . Energy Cannon . | . . Ballistic Gun 3 | . 3 Ballistic Cannon . | . . Launcher . | . . Special Weapon . | . . Impact Weapon 1 | . 1 Slashing Weapon . | . . Piercing Weapon . | . . Special Melee Weapon . | . . Unidentified Prototypes 1 | . 1 Parts Lost 2 | . 2 Power . | . . Propulsion . | . . Utility . | . . Weapon 2 | . 2 Highest Loss Streak 2 | . 2 To Critical Strikes . | . . Average Backups 15 | 6 16 Power 3 | 1 3 Propulsion 5 | 4 5 Utility 2 | . 3 Weapon 4 | 1 4 Tool/Special . | . . Unused Backups 24 | 4 20 Power 5 | 1 4 Propulsion 8 | . 8 Utility 4 | 1 3 Weapon 7 | 2 5 Tool/Special . | . . Average Slot Usage (%) 99 | . 99 Engine 14 | . 14 Treads 28 | . 28 Device 13 | . 13 Storage 14 | . 14 Ballistic Gun 26 | . 26 Impact Weapon 1 | . 1 Peak Build Rating 12 | 7 12 Average Rating 10 | 6 10 On Entrance 6 | 6 7 Avg Prop Armor Cover (%) . | . . Naked Turns . | . . Heaviest Build 93 | 15 93 Greatest Support 40 | 40 40 Greatest Overweight (x) 2 | . 2 Average Overweight (x) 1 | . 1 Largest Inventory Capacity 25 | 8 25 Average Capacity 22 | 8 23 Most Carried 21 | 8 21 Average Carried 15 | 6 16 Final Capacity 25 | 8 25 Final Carried 19 | 8 19 Class Distribution -------------------- 100% | Mutant Dominant Class ---------------- Mutant | -10/Materials Resources | -11 -10 ----------- Run | Yrd Mat Matter Collected 705 | 316 389 Remotely . | . . Salvage Created 685 | 165 520 Parts 54 | 22 32 Haulers Intercepted 2 | . 2 Recyclers Shooed . | . . Parts Field Recycled . | . . Retrieved Matter . | . . Parts Self-Destructed . | . . Prevented . | . . Parts Restored . | . . Kills | -11 -10 ------- Run | Yrd Mat Combat Hostiles Destroyed 9 | . 9 Guns 9 | . 9 Classes Destroyed 6 | 2 4 Worker 2 | . 2 Tunneler 5 | 5 . Hauler 2 | . 2 Recycler 1 | 1 . Watcher 1 | . 1 Grunt 9 | . 9 Best Kill Streak 4 | 4 2 Combat Bots Only 2 | . 2 Max Kills in Single Turn 1 | 1 1 Gunslinging . | . . Exploded . | . . Melee . | . . Uniques/NPCs Destroyed . | . . Combat | -11 -10 -------- Run | Yrd Mat Hostile Shots Fired 87 | . 87 Missed 19 | . 19 Hits 68 | . 68 Projectile 68 | . 68 Damage Taken 903 | . 903 Core 260 | . 260 Absorbed by Shields . | . . Core Remaining (%) 100 | 100 . Volleys Fired 68 | 13 55 Largest 2 | 2 2 Hottest 40 | 40 40 Shots Fired 136 | 26 110 Gun 136 | 26 110 Cannon . | . . Launcher . | . . Special . | . . Kinetic 136 | 26 110 Thermal . | . . Explosive . | . . Electromagnetic . | . . Robot Hit Streak 20 | 4 20 Robot Miss Streak 2 | 2 2 Penetration Max . | . . Secondary Targets 2 | . 2 Max Gunslinging Chain 1 | . 1 Shots Hit Robots 95 | 13 82 Core Hits 34 | 7 27 Critical Kills . | . . Critical Parts Destroyed 1 | . 1 Critical Strikes 1 | . 1 Destroy 1 | . 1 Melee Attacks 2 | . 2 Impact 2 | . 2 Slashing . | . . Piercing . | . . Sneak Attacks 1 | . 1 Combat Hostiles . | . . Follow-up Attacks . | . . Damage Inflicted 1249 | 196 1053 Guns 1202 | 196 1006 Cannons . | . . Explosions . | . . Melee 36 | . 36 Ramming 11 | . 11 Kinetic 1202 | 196 1006 Thermal . | . . Explosive . | . . Electromagnetic . | . . Impact 36 | . 36 Slashing . | . . Piercing . | . . Highest Corruption . | . . Average Corruption . | . . Corruption Purged . | . . Corruption Blocked . | . . Overload Shots . | . . Overflow Damage . | . . Projectiles . | . . Explosions . | . . Melee . | . . Knockbacks . | . . Impact . | . . Kinetic . | . . Secondary . | . . Self-Inflicted Damage . | . . Shots . | . . Rammed 1 | . 1 Targets Rammed 1 | . 1 Kicked . | . . Crushed . | . . Highest Temperature 9 | . 9 Average Temperature 3 | . 3 Received Heat Transfer 507 | . 507 Siege Activations . | . . Martial Activations . | . . Shielding Activations . | . . Robots Disrupted . | . . Combat Hostiles . | . . Robots Corrupted . | . . Combat Hostiles . | . . Parts Fried . | . . Impact Corruptions . | . . Robots Melted . | . . Combat Hostiles . | . . Parts Melted . | . . Heat Transferred . | . . Parts Sabotaged . | . . Parts Stolen . | . . Parts Stripped . | . . Power Chain Reactions . | . . Alert | -11 -10 ------- Run | Yrd Mat Maximum Alert Level 1 | . 1 Low Security (%) 99 | 100 99 Level 1 . | . . Level 2 . | . . Level 3 . | . . Level 4 . | . . Level 5 . | . . High Security . | . . Max Security . | . . Peak Influence 200 | 15 200 Initial 3 | . 3 Average 9 | 3 9 Influence Increases 382 | 30 352 Destroy 0b10 Robot/C 180 | . 180 Destroy 0b10 Robot/NC 55 | 30 25 Destroy Leader 56 | . 56 Destroy Structure 1 | . 1 Lose Combat Pursuer 90 | . 90 Influence Decreases 185 | 25 160 Entered New Map 2 | . 2 Time Decay 173 | 25 148 Lost Part 10 | . 10 Squads Dispatched 3 | . 3 Investigation . | . . Extermination . | . . Reinforcement 3 | . 3 Assault . | . . Garrison . | . . Intercept . | . . Searches Triggered . | . . Construction Impeded . | . . Haulers Reinforced . | . . Active Scanning Responses . | . . Cargo Convoy Interrupts . | . . Stealth | -11 -10 --------- Run | Yrd Mat Distress Signals 4 | . 4 Communications Jammed . | . . Distress Signals . | . . Times Spotted 24 | . 24 Peak Tracking Total 8 | . 8 Tactical Retreats 4 | . 4 Traps | -11 -10 ------- Run | Yrd Mat Traps Triggered . | . . Indirectly . | . . Trap Hack Attempts . | . . Triggered . | . . Disarmed . | . . Reprogrammed . | . . Reused . | . . Traps Extracted . | . . Installed . | . . Triggered . | . . Machines | -11 -10 ---------- Run | Yrd Mat Machines Disabled . | . . Max in Single Turn . | . . Machines Repaired . | . . Machines Dismantled . | . . Machines Sabotaged . | . . Overloaded Fab Kills . | . . Hacking | -11 -10 --------- Run | Yrd Mat Machines Accessed . | . . Terminals . | . . Fabricators . | . . Repair Stations . | . . Recycling Units . | . . Scanalyzers . | . . Garrison Access . | . . Total Hacks . | . . Successful . | . . Failed . | . . Catastrophic . | . . Database Lockouts . | . . Manual . | . . Terminals . | . . Fabricators . | . . Repair Stations . | . . Recycling Units . | . . Scanalyzers . | . . Garrison Access . | . . Terminal Hacks . | . . Fabricator Hacks . | . . Repair Station Hacks . | . . Recycling Unit Hacks . | . . Scanalyzer . | . . Garrison Access Hacks . | . . Unauthorized Hacks . | . . Terminals . | . . Fabricators . | . . Repair Stations . | . . Recycling Units . | . . Scanalyzers . | . . Garrison Access . | . . Data Cores Recovered . | . . Used . | . . Hacking Detections . | . . Full Trace Events . | . . Feedback Events . | . . Feedback Blocked . | . . Robot Schematics Acquired . | . . Robots Built . | . . Authchips . | . . Time . | . . Total Robot Build Rating . | . . Part Schematics Acquired . | . . Parts Built . | . . Authchips . | . . Time . | . . Total Part Build Rating . | . . Part Studies Acquired . | . . Parts Repaired . | . . Time . | . . Parts Recycled . | . . Recycled Matter . | . . Retrieved Matter . | . . Retrieved Components . | . . Parts Scanalyzed . | . . Part Schematics Acquired . | . . Parts Damaged . | . . Bothacking | -11 -10 ------------ Run | Yrd Mat Used RIF Installer . | . . Robots Hacked . | . . Non-combat . | . . Combat . | . . Robot Hacks Applied . | . . Relay Couplers Released . | . . Fabnet Peak Effective % . | . . Robots Rewired . | . . Allies Hacked . | . . Hacks Repelled . | . . Allies | -11 -10 -------- Run | Yrd Mat Total Allies . | . . Largest Group . | . . Highest-Rated Group . | . . Highest-Rated Ally . | . . Total Orders . | . . Ally Attacks . | . . Total Damage . | . . Kills . | . . Allies Corrupted . | . . Allies Melted . | . . Intel | -11 -10 ------- Run | Yrd Mat Active Infowar (turns) 1626 | 33 1593 Seismic 1626 | 33 1593 Robot Analysis Total . | . . Derelict Logs Recovered . | . . Drone Launches . | . . Drone Recoveries . | . . Exploration | -11 -10 ------------- Run | Yrd Mat Turns Passed 1790 | 87 1703 Spaces Moved 508 | 26 482 Core . | . . Treads 504 | 22 482 Legs 4 | 4 . Wheels . | . . Hover . | . . Flight . | . . Fastest Speed 120 | 120 160 Average Speed 280 | 153 287 Slowest Speed 320 | 160 320 Overloaded Moves . | . . Propulsion Burnouts . | . . Robots Hopped . | . . Potential Cave-ins . | . . Cave-ins Triggered . | . . Exploration Rate (%) 25 | 3 47 Regions Visited 1 Branch Regions . Pre-discovered Areas . | . . Known Exits Taken . | . . Unknown Exits Taken 1 | 1 . Scrap Searched . | . . Spaces Dug 1 | . 1 Terrain Destroyed 1 | . 1 Melee 1 | . 1 Projectile . | . . AOE . | . . Terrain Rammed . | . . Walls Destroyed . | . . Machines Disabled . | . . Actions | -11 -10 --------- Run | Yrd Mat Total 734 | 48 686 Wait 122 | 1 121 Move 507 | 25 482 Hop . | . . Pick Up 18 | 3 15 Fast Attach 1 | 1 . Attach 2 | . 2 Detach . | . . Swap 8 | 3 5 Drop 5 | 2 3 Fire 68 | 13 55 Melee 2 | . 2 Ram . | . . Kick . | . . Crush 1 | . 1 Escape Stasis . | . . Rewire . | . . Trap . | . . Miscellaneous . | . . Route ------- -11/Scrapyard -10/Materials (discovered 2 exits: [*Mat] / [*Min]) History --------- Turn | Location | Event 1 | -11/Scrapyard | Discovered new exit (range 3) 88 | -11/Scrapyard | Entered Materials 311 | -10/Materials | Build established: Mutant 775 | -10/Materials | Discovered new exit (range 3) 981 | -10/Materials | Discovered new exit (range 8) 1668 | -10/Materials | Core integrity fell below 50% 1768 | -10/Materials | Core integrity fell below 20% 1791 | -10/Materials | Destroyed by G-34 Mercenary with Small Laser Last Messages --------------- 01716_ G-34 Mercenary destroyed. 01716_ Switching to secondary target: G-34 Mercenary. 01719_ K-01 Serf collects debris. 01719_ Acquired 66 matter. 01723_ K-01 Serf collects debris. 01742_ G-34 Mercenary destroyed. 01742_ K-01 Serf collects debris. 01757_ G-47 Trooper destroyed. 01760_ Acquired 99 matter. 01763_ R-06 Scavenger collects Lgt. Nuclear Core. 01766_ Acquired 5 matter. 01770_ Acquired 6 matter. 01777_ K-01 Serf collects debris. 01778_ G-34 Mercenary destroyed. 01779_ Acquired 6 matter. 01780_ W-16 Scout sends out distress signal. 01781_ K-01 Serf collects debris. 01791_ Acquired 3 matter. Map ----- +----------------------------------------------------+ | ?????????????????????????????????????????????????? | | ?????????????????????????????????????????????????? | | ?????????????????????????????????????????????????? | | ?????????????????????????????????????????????????? | | ?????????????????????????????????????????????????? | | ?????????????????????? ????????????????????????? | | ?????????????????????? ???????????????????????? | | ?????????????????????? #???????????????????????? | | ?????????????????????# #???????????????????????? | | ?????????????????????# #???????????????????????? | | ?????????????????????# #????????? ????????????? | | ?????????????????????# #????????? ????????????? | | ?????????????????????# #????????? ????????????? | | ???????##/############ #????????# ????????????? | | ???????# # #????????# ????????????? | | ???????# # #????????# #???????????? | | ???????# + #????????# #???????????? | | ???????# # #????????# #???????????? | | ???????# # #????????/ #???????????? | | ???????# + #????????# #???????????? | | ???????############### #????????# #???????????? | | ??????????????????#### ########## #???????????? | | ?????????????????##! ## # #???????????? | | ?????????????????#! ##= # #???????????? | | ?????????????????#! ##!= # #???????????? | | ?????????????????#! !@/ [ # ############# | | ?????????????????#! g##k* # # | | ?????????????????##! % [##! w + # | | ??????????????????#### k ## # # | | ??????????????????#" # # ######%= ##### | | ??????????????????#"" # # # #[ #???? | | ??????????????????#!! # # + % # #???? | | ??????????????????#"" < # ### = # #???? | | ??????????????????#|| ######+##?# # #?##? | | ??????????????????#"" #????# #??# = # #?# ? | | ??????????????????#" #????# #??###### #?# " | | ???????????########### ##??### ###?######+#### " | | ???????????# ##### ##### #?# # " | | ???????????# #?# """ """ # " | | ???????????# " #?# """ """ # " | | ???????????# #?# """ """ # | | ???????????# ##+#######+## #?# # | | ???????????####### ## ### ###?# # | | ?????????????????# ## #?# #???# # | | ?????????????????#= =## #?#+##### # | | ?????????????????# ==## #?# "########## | | ?????????????????# =## #?# ##???######## | | ?????????????????# ## #?# ] #????# | | ?????????????????######### #?# ###### | | ????????????????????##???#####?#""" #^ # | +----------------------------------------------------+ Best States ------------- Heat Dissipation 25 Energy Generation 14 Energy Capacity 280 Matter Stores 300 Matter Capacity 300 Sight Range 16 Terrain Scan Density 10 Evasion (%) 40 Targeting Accuracy 6 Recoil Reduction 2 Item Schematics ----------------- None Robot Schematics ------------------ None Fabricated ------------ Nothing Repaired ---------- Nothing Studied --------- None Alien Tech Used ----------------- None Achievements -------------- None Challenges ------------ None Game ------ Seed TowerSigixAxe Manual? 0 Play Time 00:08:36 Cumulative 183.8 hours Start 2026.02.04 @ 14:12:29 End 2026.02.04 @ 14:19:47 Sessions 2 Manual Loads 0 Difficulty Rogue Special Mode None Game No. 210 Rogue 205 Adventurer 5 Explorer 0 Win Type - Total 6 Types 5/0/0/1/0/0/0/0/0/0 Lore% 54 Gallery% 65 Achievement% 54 Wizard Run 0 Options --------- Layout 1 ASCII 0 Keyboard 0 Movement Mouse Keybinds 0 Fullscreen 1 Font 32/SmallcapsGlow Map View 50x35 Zoom Use 6% Tactical HUD 1 Map Filters NONE Filters NONE Steam 1 RUN: b83ac679-07a7-4809-9dee-3a6c5bd3c43b